fUSD/lending_fUSD_20250623
["ID","MTS","AMOUNT","RATE_DAILY","PERIOD"]
[367117635,1750662750613,-1513.2,0.00030684,3]
[367117636,1750662750624,-1869.9,0.00030684,3]
[367117637,1750662750634,-825.47,0.00030684,3]
[367117638,1750662750644,-1291.21,0.00030684,3]
[367117639,1750662750655,-490.0,0.00030684,3]
[367117640,1750662750666,-529.57,0.00030684,3]
[367117641,1750662750677,-1000.93,0.00030684,3]
[367117642,1750662750687,-1013.98,0.00030684,2]
[367117643,1750662750697,-749.71,0.00030684,3]
[367117644,1750662750708,-2626.45,0.00030684,3]
[367117645,1750662750718,-1301.95,0.00030684,3]
[367117646,1750662750729,-914.97,0.00030684,3]
[367117647,1750662750739,-5331.91,0.00030684,3]
[367117648,1750662750749,-6188.74,0.00030684,3]
[367117649,1750662750759,-2204.74,0.00030684,3]
[367117650,1750662750769,-733.17,0.00030684,3]
[367117651,1750662750779,-742.07,0.00030684,3]
[367117652,1750662750789,-1553.91,0.00030684,3]
[367117653,1750662750799,-1201.89,0.00030684,3]
[367117654,1750662750809,-5637.09,0.00030684,3]
[367117655,1750662750820,-866.05,0.00030684,3]
[367117656,1750662750830,-716.87,0.00030684,3]
[367117657,1750662750840,-490.0,0.00030684,3]
[367117658,1750662750850,-2465.19,0.00030684,3]
[367117659,1750662750860,-1651.87,0.00030684,3]
[367117660,1750662750870,-1607.85,0.00030684,3]
[367117661,1750662750880,-572.05,0.00030684,3]
[367117662,1750662750892,-1906.99,0.00030684,3]
[367117663,1750662750903,-1536.26,0.00030684,3]
[367117664,1750662750914,-2965.58,0.00030684,3]
[367117665,1750662750924,-1920.56,0.00030684,3]
[367117666,1750662750935,-1131.73,0.00030684,3]
[367117667,1750662750946,-764.72,0.00030684,3]
[367117668,1750662750956,-594.04,0.00030684,3]
[367117669,1750662750967,-490.0,0.00030684,3]
[367117670,1750662750979,-1385.46,0.00030684,3]
[367117671,1750662750991,-201.3339867,0.00030712,30]
[367117672,1750662751002,-193.92560661,0.00030772,6]
[367117673,1750662751014,-1258.03765544,0.00030797,23]
[367117674,1750662751025,-150.19,0.00030822,2]
[367117675,1750662751035,-1091.37530692,0.00030833,5]
[367117676,1750662751046,-207.0,0.000309,30]
[367117677,1750662751056,-17903.5578096,0.00030916,2]
[367117678,1750662751067,-131611.2907871,0.00030916,2]
[367117679,1750662751077,-42285.7964567,0.00030937,2]
[367117680,1750662751088,-5455.753665,0.00030958,3]
[367117681,1750662751098,-906.91,0.00030958,3]
[367117682,1750662751397,-490.0,0.00030958,3]
[367117683,1750662751443,-490.0,0.00030958,3]
[367117684,1750662751454,-733.39,0.00030958,3]
[367117685,1750662751464,-490.0,0.00030958,3]
[367117686,1750662751474,-490.0,0.00030958,3]
[367117687,1750662751484,-252.921479,0.00030958,3]
[367117688,1750662751494,-958.78,0.00030958,3]
[367117689,1750662751506,-972.11,0.00030958,3]
[367117690,1750662751516,-490.0,0.00030958,3]
[367117691,1750662751528,-2591.829598,0.00030958,3]
[367117692,1750662751538,-615.11,0.00030958,3]
[367117693,1750662751547,-804.23,0.00030958,3]
[367117694,1750662751557,-490.0,0.00030958,3]
[367117695,1750662751567,-490.0,0.00030958,3]
[367117696,1750662751577,-490.0,0.00030958,3]
[367117697,1750662751586,-1075.31,0.00030958,3]
[367117698,1750662751597,-811.41,0.00030958,3]
[367117699,1750662751607,-663.45,0.00030958,3]
[367117700,1750662751618,-490.0,0.00030958,3]
[367117701,1750662751627,-695.49,0.00030958,3]
[367117702,1750662751637,-490.0,0.00030958,3]
[367117703,1750662751648,-977.66,0.00030958,3]
[367117704,1750662751657,-833.21,0.00030958,3]
[367117705,1750662751667,-591.25,0.00030958,3]
[367117706,1750662751677,-690.16,0.00030958,3]
[367117707,1750662751687,-1109.36,0.00030958,3]
[367117708,1750662751697,-490.0,0.00030958,3]
[367117709,1750662751707,-526.92,0.00030958,3]
[367117710,1750662751719,-519.11,0.00030958,3]
[367117711,1750662751730,-490.0,0.00030958,3]
[367117712,1750662751740,-970.12,0.00030958,3]
[367117713,1750662751750,-1478.36,0.00030958,3]
[367117714,1750662751760,-490.0,0.00030958,3]
[367117715,1750662751770,-340.81969816,0.00030958,3]
[367117716,1750662751779,-1376.6,0.00030958,3]
[367117717,1750662751791,-490.0,0.00030958,3]
[367117718,1750662751801,-889.62,0.00030958,3]
[367117719,1750662751811,-490.0,0.00030958,3]
[367117720,1750662751821,-1155.19,0.00030958,3]
[367117721,1750662751831,-490.0,0.00030958,3]
[367117722,1750662751841,-495.01,0.00030958,3]
[367117723,1750662751850,-668.52,0.00030958,3]
[367117724,1750662751860,-698.01,0.00030958,3]
[367117725,1750662751870,-586.16,0.00030958,3]
[367117726,1750662751880,-413.55575294,0.00030958,3]
[367117727,1750662751890,-490.0,0.00030958,3]
[367117728,1750662751900,-644.39,0.00030958,3]
[367117729,1750662751910,-617.7,0.00030958,3]
[367117730,1750662751920,-826.8,0.00030958,3]
[367117731,1750662751930,-490.0,0.00030958,3]
[367117732,1750662751940,-490.0,0.00030958,3]
[367117733,1750662751949,-258.68327713,0.00030958,3]
[367117734,1750662751959,-626.46,0.00030958,3]
[367117735,1750662751969,-841.55,0.00030958,3]
[367117736,1750662751979,-625.27,0.00030958,3]
[367117737,1750662751989,-1584.78,0.00030958,3]
[367117738,1750662751998,-490.0,0.00030958,3]
[367117739,1750662752008,-490.0,0.00030958,3]
[367117740,1750662752018,-490.0,0.00030958,3]
[367117741,1750662752027,-1089.25,0.00030958,3]
[367117742,1750662752037,-914.26,0.00030958,3]
[367117743,1750662752047,-777.39,0.00030958,3]
[367117744,1750662752057,-667.3,0.00030958,3]
[367117745,1750662752066,-1172.55,0.00030958,3]
[367117746,1750662752076,-857.69,0.00030958,3]
[367117747,1750662752086,-601.26,0.00030958,3]
[367117748,1750662752096,-654.18,0.00030958,3]
[367117749,1750662752106,-1486.14,0.00030958,3]
[367117750,1750662752115,-563.6,0.00030958,3]
[367117751,1750662752125,-641.56,0.00030958,3]
[367117752,1750662752135,-2328.1,0.00030958,3]
[367117753,1750662752145,-490.0,0.00030958,3]
[367117754,1750662752156,-490.0,0.00030958,3]
[367117755,1750662752166,-2984.61,0.00030958,3]
[367117756,1750662752176,-834.55,0.00030958,3]
[367117757,1750662752186,-1714.75,0.00030958,3]
[367117758,1750662752196,-1666.5,0.00030958,3]
[367117759,1750662752206,-579.07,0.00030958,3]
[367117760,1750662752216,-774.87,0.00030958,3]
[367117761,1750662752226,-198.016965,0.00030958,3]
[367117762,1750662752236,-490.0,0.00030958,3]
[367117763,1750662752245,-523.64,0.00030958,3]
[367117764,1750662752255,-1685.1,0.00030958,3]
[367117765,1750662752265,-685.83,0.00030958,3]
[367117766,1750662752275,-490.0,0.00030958,3]
[367117767,1750662752284,-845.32,0.00030958,3]
[367117768,1750662752294,-490.0,0.00030958,3]
[367117769,1750662752303,-1003.013708,0.00030958,3]
[367117770,1750662752313,-407.03,0.00030958,3]
[367117771,1750662752323,-490.0,0.00030958,3]
[367117772,1750662752333,-620.28,0.00030958,3]
[367117773,1750662752343,-692.18,0.00030958,3]
[367117774,1750662752353,-583.42,0.00030958,3]
[367117775,1750662752362,-490.0,0.00030958,3]
[367117776,1750662752372,-1382.11,0.00030958,3]
[367117777,1750662752382,-198.76425266,0.00030958,3]
[367117778,1750662752392,-957.53,0.00030958,3]
[367117779,1750662752403,-1520.85,0.00030958,3]
[367117780,1750662752414,-852.4,0.00030958,3]
[367117781,1750662752423,-1514.64,0.00030958,3]
[367117782,1750662752433,-564.98,0.00030958,3]
[367117783,1750662752443,-1413.76,0.00030958,3]
[367117784,1750662752453,-621.88,0.00030958,3]
[367117785,1750662752463,-643.76,0.00030958,3]
[367117786,1750662752472,-1486.85,0.00030958,3]
[367117787,1750662752482,-605.57,0.00030958,3]
[367117788,1750662752492,-765.6,0.00030958,3]
[367117789,1750662752501,-635.87,0.00030958,3]
[367117790,1750662752511,-490.0,0.00030958,3]
[367117791,1750662752522,-748.29,0.00030958,3]
[367117792,1750662752535,-559.87,0.00030958,3]
[367117793,1750662752544,-521.1,0.00030958,3]
[367117794,1750662752555,-702.32,0.00030958,3]
[367117795,1750662752564,-1437.96,0.00030958,3]
[367117796,1750662752575,-933.29,0.00030958,3]
[367117797,1750662752585,-623.74,0.00030958,3]
[367117798,1750662752594,-1229.23,0.00030958,3]
[367117799,1750662752604,-1240.62,0.00030958,3]
[367117800,1750662752614,-490.0,0.00030958,3]
[367117801,1750662752623,-1044.91,0.00030958,3]
[367117802,1750662752632,-636.16,0.00030958,3]
[367117803,1750662752642,-490.92,0.00030958,3]
[367117804,1750662752653,-583.46,0.00030958,3]
[367117805,1750662752663,-1648.05,0.00030958,3]
[367117806,1750662752673,-745.48,0.00030958,3]
[367117807,1750662752683,-1819.02,0.00030958,3]
[367117808,1750662752692,-1025.74,0.00030958,3]
[367117809,1750662752701,-507.64,0.00030958,3]
[367117810,1750662752711,-1776.13,0.00030958,3]
[367117811,1750662752720,-803.35,0.00030958,3]
[367117812,1750662752730,-1305.95,0.00030958,3]
[367117813,1750662752740,-825.12,0.00030958,3]
[367117814,1750662752749,-1801.52,0.00030958,3]
[367117815,1750662752758,-553.17,0.00030958,3]
[367117816,1750662752767,-1449.74,0.00030958,3]
[367117817,1750662752778,-1184.6,0.00030958,3]
[367117818,1750662752787,-2077.31,0.00030958,3]
[367117819,1750662752797,-903.1,0.00030958,3]
[367117820,1750662752806,-1228.76,0.00030958,3]
[367117821,1750662752816,-840.82,0.00030958,3]
[367117822,1750662752828,-972.48,0.00030958,3]
[367117823,1750662752839,-1017.63,0.00030958,3]
[367117824,1750662752849,-490.0,0.00030958,3]
[367117825,1750662752859,-698.82,0.00030958,3]
[367117826,1750662752868,-1683.09,0.00030958,3]
[367117827,1750662752878,-614.18,0.00030958,3]
[367117828,1750662752887,-1068.5,0.00030958,3]
[367117829,1750662752898,-492.43,0.00030958,3]
[367117830,1750662752907,-899.45,0.00030958,3]
[367117831,1750662752916,-1636.32,0.00030958,3]
[367117832,1750662752925,-1018.31,0.00030958,3]
[367117833,1750662752936,-1034.85,0.00030958,3]
[367117834,1750662752945,-490.0,0.00030958,3]
[367117835,1750662752955,-636.43,0.00030958,3]
[367117836,1750662752964,-514.73,0.00030958,3]
[367117837,1750662752973,-1597.54,0.00030958,3]
[367117838,1750662752982,-878.08,0.00030958,3]
[367117839,1750662752991,-195.36297924,0.00030958,3]
[367117840,1750662753000,-933.44,0.00030958,3]
[367117841,1750662753010,-490.0,0.00030958,3]
[367117842,1750662753019,-980.14,0.00030958,3]
[367117843,1750662753029,-1351.29,0.00030958,3]
[367117844,1750662753038,-490.0,0.00030958,3]
[367117845,1750662753047,-490.0,0.00030958,3]
[367117846,1750662753057,-1021.72,0.00030958,3]
[367117847,1750662753066,-490.0,0.00030958,3]
[367117848,1750662753076,-490.0,0.00030958,3]
[367117849,1750662753086,-2515.92,0.00030958,3]
[367117850,1750662753095,-563.49,0.00030958,3]
[367117851,1750662753105,-718.42,0.00030958,3]
[367117852,1750662753114,-973.74,0.00030958,3]
[367117853,1750662753124,-490.0,0.00030958,3]
[367117854,1750662753134,-763.59,0.00030958,3]
[367117855,1750662753143,-490.0,0.00030958,3]
[367117856,1750662753156,-1171.08,0.00030958,3]
[367117857,1750662753165,-490.0,0.00030958,3]
[367117858,1750662753175,-806.32,0.00030958,3]
[367117859,1750662753184,-1313.3,0.00030958,3]
[367117860,1750662753195,-286.92797743,0.00030958,3]
[367117861,1750662753205,-1866.63,0.00030958,3]
[367117862,1750662753215,-783.39,0.00030958,3]
[367117863,1750662753225,-1408.5,0.00030958,3]
[367117864,1750662753235,-760.51,0.00030958,3]
[367117865,1750662753244,-640.07,0.00030958,3]
[367117866,1750662753254,-1113.91,0.00030958,3]
[367117867,1750662753265,-1615.12,0.00030958,3]
[367117868,1750662753275,-1204.57,0.00030958,3]
[367117869,1750662753286,-490.0,0.00030958,3]
[367117870,1750662753296,-852.31,0.00030958,3]
[367117871,1750662753307,-1617.57,0.00030958,3]
[367117872,1750662753318,-1344.16,0.00030958,3]
[367117873,1750662753328,-1189.28,0.00030958,3]
[367117874,1750662753340,-619.15634288,0.00030958,3]
[367117875,1750662753351,-924.24,0.00030958,3]
[367117876,1750662753364,-1017.87,0.00030958,3]
[367117877,1750662753375,-1327.65,0.00030958,3]
[367117878,1750662753386,-490.0,0.00030958,3]
[367117879,1750662753398,-816.97,0.00030958,3]
[367117880,1750662753410,-1505.21,0.00030958,3]
[367117881,1750662753422,-490.0,0.00030958,3]
[367117882,1750662753433,-1444.07,0.00030958,3]
[367117883,1750662753444,-490.0,0.00030958,3]
[367117884,1750662753454,-490.0,0.00030958,3]
[367117885,1750662753464,-995.43,0.00030958,3]
[367117886,1750662753475,-3010.94,0.00030958,2]
[367117887,1750662753485,-1097.45,0.00030958,3]
[367117888,1750662753495,-490.0,0.00030958,3]
[367117889,1750662753505,-753.53,0.00030958,3]
[367117890,1750662753515,-1037.06,0.00030958,3]
[367117891,1750662753528,-1995.53,0.00030958,3]
[367117892,1750662753538,-490.0,0.00030958,3]
[367117893,1750662753549,-660.48,0.00030958,3]
[367117894,1750662753559,-752.2,0.00030958,3]
[367117895,1750662753570,-1341.44,0.00030958,3]
[367117896,1750662753580,-850.05,0.00030958,3]
[367117897,1750662753590,-581.79,0.00030958,3]
[367117898,1750662753601,-2153.23,0.00030958,3]
[367117899,1750662753611,-557.61,0.00030958,3]
[367117900,1750662753620,-507.29,0.00030958,3]
[367117901,1750662753630,-572.59,0.00030958,3]
[367117902,1750662753641,-490.0,0.00030958,3]
[367117903,1750662753653,-2413.05,0.00030958,3]
[367117904,1750662753663,-566.43,0.00030958,3]
[367117905,1750662753674,-1348.78,0.00030958,3]
[367117906,1750662753684,-2316.4,0.00030958,3]
[367117907,1750662753694,-1609.27,0.00030958,3]
[367117908,1750662753704,-490.0,0.00030958,3]
[367117909,1750662753714,-569.99,0.00030958,3]
[367117910,1750662753725,-490.0,0.00030958,3]
[367117911,1750662753735,-490.0,0.00030958,3]
[367117912,1750662753745,-490.0,0.00030958,3]
[367117913,1750662753755,-731.27,0.00030958,3]
[367117914,1750662753765,-2663.87,0.00030958,3]
[367117915,1750662753776,-861.6,0.00030958,3]
[367117916,1750662753785,-560.0,0.00030958,3]
[367117917,1750662753795,-1117.5,0.00030958,3]
[367117918,1750662753805,-921.04,0.00030958,3]
[367117919,1750662753815,-783.55,0.00030958,3]
[367117920,1750662753825,-600.11,0.00030958,3]
[367117921,1750662753942,-1052.0,0.00030958,3]
[367117922,1750662753953,-490.0,0.00030958,3]
[367117923,1750662753963,-785.27,0.00030958,3]
[367117924,1750662753973,-595.61,0.00030958,3]
[367117925,1750662753983,-950.58,0.00030958,3]
[367117926,1750662753993,-1688.41,0.00030958,3]
[367117927,1750662754003,-1953.41,0.00030958,3]
[367117928,1750662754013,-523.44,0.00030958,3]
[367117929,1750662754023,-1726.17,0.00030958,3]
[367117930,1750662754033,-603.07,0.00030958,3]
[367117931,1750662754043,-1456.32,0.00030958,3]
[367117932,1750662754052,-1698.32,0.00030958,3]
[367117933,1750662754062,-490.0,0.00030958,3]
[367117934,1750662754071,-490.0,0.00030958,3]
[367117935,1750662754081,-490.0,0.00030958,3]
[367117936,1750662754091,-1007.06,0.00030958,3]
[367117937,1750662754101,-1681.01,0.00030958,3]
[367117938,1750662754110,-1708.4,0.00030958,3]
[367117939,1750662754120,-873.29,0.00030958,3]
[367117940,1750662754130,-1098.59,0.00030958,3]
[367117941,1750662754140,-1944.53,0.00030958,3]
[367117942,1750662754151,-490.0,0.00030958,3]
[367117943,1750662754161,-2433.81,0.00030958,3]
[367117944,1750662754171,-501.38,0.00030958,3]
[367117945,1750662754181,-577.0,0.00030958,3]
[367117946,1750662754192,-750.42,0.00030958,3]
[367117947,1750662754203,-662.45,0.00030958,3]
[367117948,1750662754214,-490.0,0.00030958,3]
[367117949,1750662754224,-1247.14,0.00030958,3]
[367117950,1750662754234,-1551.77,0.00030958,3]
[367117951,1750662754244,-1650.44,0.00030958,3]
[367117952,1750662754254,-703.59,0.00030958,3]
[367117953,1750662754264,-529.91,0.00030958,3]
[367117954,1750662754274,-166.38055117,0.00030958,3]
[367117955,1750662754283,-490.0,0.00030958,3]
[367117956,1750662754294,-788.62,0.00030958,3]
[367117957,1750662754304,-912.47,0.00030958,3]
[367117958,1750662754314,-1251.29,0.00030958,3]
[367117959,1750662754324,-490.0,0.00030958,3]
[367117960,1750662754334,-655.66,0.00030958,3]
[367117961,1750662754344,-675.57,0.00030958,3]
[367117962,1750662754354,-300.0,0.00030958,3]
[367117963,1750662754364,-1664.2,0.00030958,3]
[367117964,1750662754374,-1679.9,0.00030958,3]
[367117965,1750662754383,-1433.27,0.00030958,3]
[367117966,1750662754393,-1066.4,0.00030958,3]
[367117967,1750662754404,-490.0,0.00030958,3]
[367117968,1750662754413,-572.95,0.00030958,3]
[367117969,1750662754422,-490.0,0.00030958,3]
[367117970,1750662754432,-1605.51,0.00030958,3]
[367117971,1750662754442,-1690.95,0.00030958,3]
[367117972,1750662754451,-490.0,0.00030958,3]
[367117973,1750662754461,-490.0,0.00030958,3]
[367117974,1750662754472,-1674.28,0.00030958,3]
[367117975,1750662754482,-638.77,0.00030958,3]
[367117976,1750662754491,-1574.11,0.00030958,3]
[367117977,1750662754501,-378.81,0.00030958,3]
[367117978,1750662754510,-684.38,0.00030958,3]
[367117979,1750662754520,-1278.36,0.00030958,3]
[367117980,1750662754535,-905.6,0.00030958,3]
[367117981,1750662754546,-1682.39,0.00030958,3]
[367117982,1750662754556,-1126.22,0.00030958,3]
[367117983,1750662754566,-1410.38,0.00030958,3]
[367117984,1750662754577,-1883.69,0.00030958,3]
[367117985,1750662754586,-7415.21,0.00030958,3]
[367117986,1750662754595,-2332.56,0.00030958,3]
[367117987,1750662754605,-1449.04,0.00030958,3]
[367117988,1750662754615,-849.69,0.00030958,3]
[367117989,1750662754624,-883.32,0.00030958,3]
[367117990,1750662754634,-901.3,0.00030958,3]
[367117991,1750662754645,-1248.93,0.00030958,3]
[367117992,1750662754656,-587.88,0.00030958,3]
[367117993,1750662754666,-1164.04,0.00030958,3]
[367117994,1750662754675,-1753.14,0.00030958,3]
[367117995,1750662754685,-10399.38,0.00030958,3]
[367117996,1750662754695,-4073.96,0.00030958,3]
[367117997,1750662754704,-580.67,0.00030958,3]
[367117998,1750662754713,-1448.46,0.00030958,3]
[367117999,1750662754723,-836.73,0.00030958,3]
[367118000,1750662754733,-918.93,0.00030958,3]
[367118001,1750662754743,-1355.08,0.00030958,3]
[367118002,1750662754753,-526.35,0.00030958,3]
[367118003,1750662754762,-6824.52,0.00030958,3]
[367118004,1750662754772,-1900.51,0.00030958,3]
[367118005,1750662754782,-1016.76,0.00030958,3]
[367118006,1750662754791,-3401.6,0.00030958,3]
[367118007,1750662754801,-3966.47,0.00030958,3]
[367118008,1750662754810,-490.0,0.00030958,3]
[367118009,1750662754820,-490.0,0.00030958,3]
[367118010,1750662754829,-909.73,0.00030958,3]
[367118011,1750662754839,-934.07,0.00030958,3]
[367118012,1750662754848,-4949.36,0.00030958,3]
[367118013,1750662754857,-2915.88,0.00030958,3]
[367118014,1750662754868,-490.0,0.00030958,3]
[367118015,1750662754880,-1741.72,0.00030958,3]
[367118016,1750662754889,-1585.93,0.00030958,3]
[367118017,1750662754900,-490.0,0.00030958,3]
[367118018,1750662754911,-490.0,0.00030958,3]
[367118019,1750662754921,-608.52,0.00030958,3]
[367118020,1750662754930,-18062.45,0.00030958,3]
[367118021,1750662754940,-814.19,0.00030958,3]
[367118022,1750662754950,-3468.99,0.00030958,3]
[367118023,1750662754960,-1570.58,0.00030958,3]
[367118024,1750662754969,-1672.97,0.00030958,3]
[367118025,1750662754979,-798.22,0.00030958,3]
[367118026,1750662754988,-789.6,0.00030958,3]
[367118027,1750662754998,-1533.06,0.00030958,3]
[367118028,1750662755007,-1681.4,0.00030958,3]
[367118029,1750662755017,-490.0,0.00030958,3]
[367118030,1750662755026,-528.64,0.00030958,3]
[367118031,1750662755035,-1980.76,0.00030958,3]
[367118032,1750662755045,-1108.02,0.00030958,3]
[367118033,1750662755054,-2594.4,0.00030958,3]
[367118034,1750662755064,-490.0,0.00030958,3]
[367118035,1750662755074,-1623.55,0.00030958,3]
[367118036,1750662755083,-490.0,0.00030958,3]
[367118037,1750662755093,-891.21,0.00030958,3]
[367118038,1750662755102,-1019.18,0.00030958,3]
[367118039,1750662755112,-1174.99,0.00030958,3]
[367118040,1750662755121,-3127.29,0.00030958,3]
[367118041,1750662755130,-1569.21,0.00030958,3]
[367118042,1750662755139,-490.0,0.00030958,3]
[367118043,1750662755150,-1940.59,0.00030958,3]
[367118044,1750662755159,-2329.34,0.00030958,3]
[367118045,1750662755169,-664.92,0.00030958,3]
[367118046,1750662755178,-1830.85,0.00030958,3]
[367118047,1750662755187,-1700.21,0.00030958,3]
[367118048,1750662755197,-2769.81,0.00030958,3]
[367118049,1750662755207,-490.0,0.00030958,3]
[367118050,1750662755217,-6713.02,0.00030958,3]
[367118051,1750662755226,-777.56,0.00030958,3]
[367118052,1750662755236,-2394.73,0.00030958,3]
[367118053,1750662755246,-826.09,0.00030958,3]
[367118054,1750662755255,-490.0,0.00030958,3]
[367118055,1750662755264,-1294.78,0.00030958,3]
[367118056,1750662755273,-760.04,0.00030958,3]
[367118057,1750662755283,-1749.09,0.00030958,3]
[367118058,1750662755293,-490.0,0.00030958,3]
[367118059,1750662755302,-555.71,0.00030958,3]
[367118060,1750662755312,-1626.24,0.00030958,3]
[367118061,1750662755321,-713.4,0.00030958,3]
[367118062,1750662755331,-4056.64,0.00030958,3]
[367118063,1750662755340,-490.0,0.00030958,3]
[367118064,1750662755350,-1498.64,0.00030958,3]
[367118065,1750662755359,-1457.21,0.00030958,3]
[367118066,1750662755369,-490.0,0.00030958,3]
[367118067,1750662755378,-737.54,0.00030958,3]
[367118068,1750662755388,-1307.83,0.00030958,3]
[367118069,1750662755397,-728.06,0.00030958,3]
[367118070,1750662755407,-490.0,0.00030958,3]
[367118071,1750662755416,-1832.35,0.00030958,3]
[367118072,1750662755426,-1380.67,0.00030958,3]
[367118073,1750662755435,-2228.14,0.00030958,3]
[367118074,1750662755445,-2372.02,0.00030958,3]
[367118075,1750662755454,-556.24837886,0.00030958,3]
[367118076,1750662755467,-3318.96,0.00030958,3]
[367118077,1750662755476,-709.01,0.00030958,3]
[367118078,1750662755486,-862.45,0.00030958,3]
[367118079,1750662755495,-788.8,0.00030958,3]
[367118080,1750662755503,-1916.86,0.00030958,3]
[367118081,1750662755512,-1200.13,0.00030958,3]
[367118082,1750662755522,-678.77,0.00030958,3]
[367118083,1750662755535,-4654.08,0.00030958,3]
[367118084,1750662755544,-1366.52,0.00030958,3]
[367118085,1750662755553,-515.04,0.00030958,3]
[367118086,1750662755561,-788.62,0.00030958,3]
[367118087,1750662755570,-553.78,0.00030958,3]
[367118088,1750662755579,-1578.33,0.00030958,3]
[367118089,1750662755588,-1107.26,0.00030958,3]
[367118090,1750662755597,-498.97,0.00030958,3]
[367118091,1750662755605,-7394.17,0.00030958,3]
[367118092,1750662755615,-1624.99,0.00030958,3]
[367118093,1750662755624,-500.0,0.00030958,3]
[367118094,1750662755632,-456.49985561,0.00030958,3]
[367118095,1750662755641,-490.0,0.00030958,3]
[367118096,1750662755650,-2834.49,0.00030958,3]
[367118097,1750662755659,-1036.64,0.00030958,3]
[367118098,1750662755668,-12536.04,0.00030958,3]
[367118099,1750662755677,-3543.99,0.00030958,3]
[367118100,1750662755686,-1768.62,0.00030958,3]
[367118101,1750662755696,-497.45,0.00030958,3]
[367118102,1750662755705,-1619.96,0.00030958,3]
[367118103,1750662755714,-510.41,0.00030958,3]
[367118104,1750662755724,-9852.89,0.00030958,3]
[367118105,1750662755733,-5190.35,0.00030958,3]
[367118106,1750662755743,-490.0,0.00030958,3]
[367118107,1750662755751,-1552.44,0.00030958,3]
[367118108,1750662755760,-814.87,0.00030958,3]
[367118109,1750662755770,-1947.91,0.00030958,3]
[367118110,1750662755779,-510.26,0.00030958,3]
[367118111,1750662755788,-2783.14,0.00030958,3]
[367118112,1750662755797,-1717.08,0.00030958,3]
[367118113,1750662755806,-490.0,0.00030958,3]
[367118114,1750662755815,-2330.84,0.00030958,3]
[367118115,1750662755824,-1630.26,0.00030958,3]
[367118116,1750662755834,-752.02,0.00030958,3]
[367118117,1750662755843,-490.0,0.00030958,3]
[367118118,1750662755852,-1618.67,0.00030958,3]
[367118119,1750662755861,-490.0,0.00030958,3]
[367118120,1750662755870,-1776.65,0.00030958,3]
[367118121,1750662755879,-915.84,0.00030958,3]
[367118122,1750662755888,-1151.97,0.00030958,3]
[367118123,1750662755897,-670.37,0.00030958,3]
[367118124,1750662755908,-3986.65,0.00030958,3]
[367118125,1750662755916,-1591.01,0.00030958,3]
[367118126,1750662755925,-1960.82,0.00030958,3]
[367118127,1750662755934,-6065.53,0.00030958,3]
[367118128,1750662755943,-1605.38,0.00030958,3]
[367118129,1750662755952,-1642.63,0.00030958,3]
[367118130,1750662755961,-798.12,0.00030958,3]
[367118131,1750662755971,-1292.66,0.00030958,3]
[367118132,1750662755980,-2292.5,0.00030958,3]
[367118133,1750662755990,-2903.63,0.00030958,3]
[367118134,1750662756000,-1562.1,0.00030958,3]